bitfinex-derivatives/quotes_ETHF0:USTF0_20250614
["timestamp","ask_amount","ask_price","bid_price","bid_amount"]
[1749923837082,0.79947338,2513.3,2513.2,0.7955]
[1749923838974,0.79553,2513.1,2513.0,25.88595]
[1749923839273,0.79551,2513.2,2513.1,0.79551]
[1749923841282,2.08936338,2513.3,2513.2,0.7955]
[1749923842277,0.00398338,2513.3,2513.2,0.7955]
[1749923843191,0.79944338,2513.3,2513.2,0.7955]
[1749923843391,0.00398338,2513.3,2513.2,0.7955]
[1749923843592,0.79944338,2513.3,2513.2,0.7955]
[1749923845395,0.00398338,2513.3,2513.2,0.7955]
[1749923846288,0.79944338,2513.3,2513.2,0.7955]
[1749923846490,0.00398338,2513.3,2513.2,0.7955]
[1749923847392,0.79944338,2513.3,2513.2,0.7955]
[1749923849496,0.96667985,2513.3,2513.2,0.7955]
[1749923849897,0.96667835,2513.3,2513.2,0.7955]
[1749923850201,1.76213835,2513.3,2513.2,0.7955]
[1749923850400,0.00398338,2513.3,2513.2,0.7955]
[1749923851700,0.00398338,2513.3,2513.2,2.1465]
[1749923854898,1.3335,2513.7,2513.6,0.79537]
[1749923855200,0.79532,2513.8,2513.7,0.79534]
[1749923855395,0.79537,2513.7,2513.6,0.79535]
[1749923855595,0.79534,2513.7,2513.6,0.6549]
[1749923855792,2.16194,2513.7,2513.6,0.6549]
[1749923855998,0.79537,2513.6,2513.5,3.2078]
[1749923856303,0.7954,2513.5,2513.4,0.00597502]
[1749923856501,3.10552922,2513.5,2513.4,0.80140502]
[1749923856690,4.47212922,2513.5,2513.4,0.80140502]
[1749923856894,4.47212922,2513.5,2513.4,0.00597502]
[1749923857294,4.47212922,2513.5,2513.4,0.80140502]
[1749923858094,4.47212922,2513.5,2513.4,0.00597502]
[1749923858403,4.47212922,2513.5,2513.4,0.80140502]
[1749923859902,4.47212922,2513.5,2513.4,0.00597502]
[1749923860103,7.67992922,2513.5,2513.4,0.00597502]
[1749923868412,4.47212922,2513.5,2513.4,0.00597502]
[1749923872409,2.31012922,2513.5,2513.4,0.80140502]
[1749923872609,0.96232922,2513.5,2513.4,0.80140502]
[1749923872810,1.75772922,2513.5,2513.4,0.00597502]
[1749923873108,3.03762922,2513.5,2513.4,0.00597502]
[1749923876417,0.79553,2513.1,2513.0,0.6478]
[1749923876914,1.75785922,2513.1,2513.0,0.6478]
[1749923877513,3.01685922,2513.1,2513.0,0.6478]
[1749923882420,0.79559,2512.9,2512.8,0.80157502]
[1749923882816,0.79559,2512.9,2512.8,1.46627502]
[1749923886520,1.32709268,2513.1,2512.8,0.67067502]
[1749923886721,0.79559,2512.9,2512.8,1.46627502]
[1749923887423,2.12264268,2513.1,2513.0,0.79556]
[1749923887622,1.02946018,2513.1,2513.0,0.79556]
[1749923888018,0.9613675,2513.1,2513.0,0.79556]
[1749923888921,0.79559,2513.0,2512.9,0.79557]
[1749923889122,1.7569575,2513.0,2512.9,0.79557]
[1749923891229,0.79559,2512.9,2512.8,25.88428502]
[1749923891928,0.79558,2513.0,2512.9,0.79558]
[1749923892318,1.75711083,2513.0,2512.9,0.79558]
[1749923892726,0.79559,2512.9,2512.8,25.88427502]
[1749923895825,1.75724288,2512.9,2512.8,25.88427502]
[1749923896324,0.6302,2513.1,2512.8,25.88427502]
[1749923896525,0.79559,2512.9,2512.8,25.88427502]
[1749923896718,1.75722147,2512.9,2512.8,25.88427502]
[1749923897226,1.75722147,2512.9,2512.8,25.88127502]
[1749923898532,1.75722147,2512.9,2512.8,1.46627502]
[1749923898721,1.75722147,2512.9,2512.8,25.88027502]
[1749923902130,1.75722147,2512.9,2512.8,29.08807502]
[1749923902533,0.96163147,2512.9,2512.8,29.08807502]
[1749923902831,0.79559,2513.0,2512.9,0.79559]
[1749923903020,1.75794504,2513.0,2512.9,0.79559]
[1749923904927,0.79559,2512.9,2512.8,4.67408502]
[1749923905125,1.75960155,2512.9,2512.8,29.08508502]
[1749923906531,1.75960155,2512.9,2512.8,25.87728502]
[1749923906736,1.75960155,2512.9,2512.8,29.08508502]
[1749923908529,1.75960155,2512.9,2512.8,25.87728502]
[1749923908731,1.75978098,2512.9,2512.8,29.08508502]
[1749923909436,1.82787366,2512.9,2512.8,29.08508502]
[1749923909932,1.82787366,2512.9,2512.8,25.87728502]
[1749923910138,1.82787366,2512.9,2512.8,29.08508502]
[1749923910340,1.75978098,2512.9,2512.8,29.08508502]
[1749923910636,1.75978098,2512.9,2512.8,29.08208502]
[1749923912039,1.75987185,2512.9,2512.8,29.08208502]
[1749923912733,0.96428185,2512.9,2512.8,29.08208502]
[1749923913238,1.75987185,2512.9,2512.8,29.08208502]
[1749923914745,0.96428185,2512.9,2512.8,29.08208502]
[1749923915244,0.96428185,2512.9,2512.8,4.67408502]
[1749923915445,0.96428185,2512.9,2512.8,29.07908502]
[1749923915446,1.03237453,2512.9,2512.8,29.07908502]
[1749923915744,1.34087502,2513.3,2513.2,0.7955]
[1749923915745,0.00597502,2513.3,2513.2,0.7955]
[1749923915946,0.00597502,2513.3,2513.2,28.4083]
[1749923917245,0.80143502,2513.3,2513.2,3.2078]
[1749923917540,0.79559,2512.9,2512.8,3.21377502]
[1749923918437,1.46629,2512.9,2512.8,3.21377502]
[1749923923040,1.46629,2512.9,2512.8,0.00597502]
[1749923927754,2.42493083,2512.9,2512.8,0.00597502]
[1749923930649,8.77293083,2512.9,2512.8,0.00597502]
[1749923930851,9.08502021,2512.9,2512.8,0.00597502]
[1749923931352,10.11463083,2512.9,2512.8,0.00597502]
[1749923935352,10.42735532,2512.9,2512.8,0.00597502]
[1749923936151,10.11463083,2512.9,2512.8,0.00597502]
[1749923940759,10.11799145,2512.9,2512.8,0.00597502]
[1749923941559,10.4385138,2512.9,2512.8,0.00597502]
[1749923941956,1.98917,2512.7,2512.3,0.6332]
[1749923942258,0.79575,2512.4,2512.3,0.6332]
[1749923945565,0.79581,2512.2,2512.1,0.00597502]
[1749923946068,1.75787027,2512.2,2512.1,0.00597502]
[1749923949369,3.70517027,2512.2,2512.1,0.00597502]
[1749923950367,1.75787027,2512.2,2512.1,0.00597502]
[1749923950761,1.75787027,2512.2,2512.1,0.64877502]
[1749923951669,1.75787027,2512.2,2512.1,0.00597502]
[1749923952170,3.12407027,2512.2,2512.1,0.00597502]
[1749923958879,0.79597,2511.7,2511.6,0.6419]
[1749923961975,1.75735345,2511.7,2511.6,0.6419]
[1749923962274,0.79603,2511.5,2511.4,4.21377502]
[1749923962474,0.79603,2511.5,2511.4,4.85577502]
[1749923964381,6.331,2511.7,2511.6,0.796]
[1749923964583,0.796,2511.6,2511.5,0.79602]
[1749923965981,0.80189502,2511.9,2511.8,0.79594]
[1749923966888,0.00597502,2511.9,2511.6,1.2604]
[1749923967189,0.00597502,2511.9,2511.8,0.79594]
[1749923967190,0.80188502,2511.9,2511.8,0.79594]
[1749923967390,0.00597502,2511.9,2511.8,2.05634]
[1749923967683,0.80188502,2511.9,2511.8,2.72864]
[1749923967989,0.00597502,2511.9,2511.8,2.72864]
[1749923968487,3.2078,2512.5,2511.8,14.06064]
[1749923968687,0.79581,2512.2,2512.0,3.2078]
[1749923968886,0.79581,2512.2,2512.1,1.3094]
[1749923969191,0.79579,2512.3,2512.2,0.7958]
[1749923969387,0.79578,2512.3,2512.2,2.10479]
[1749923970290,0.79577,2512.4,2512.3,0.79577]
[1749923970491,0.00597502,2512.5,2512.4,0.79575]
[1749923970789,0.80169502,2512.5,2512.4,0.79575]
[1749923970992,0.79575,2512.4,2512.3,5.31297]
[1749923971690,0.79575,2512.4,2512.3,1.3094]
[1749923972192,0.79575,2512.4,2512.3,2.10518]
[1749923972390,0.79575,2512.4,2512.3,1.3094]
[1749923972590,0.79578,2512.3,2512.2,2.1048]
[1749923972889,0.79578,2512.3,2512.2,1.309]
[1749923974392,0.79578,2512.3,2512.2,2.10481]
[1749923975193,0.79578,2512.3,2512.2,1.309]
[1749923975393,0.79578,2512.3,2512.2,0.6558]
[1749923979792,0.79578,2512.3,2512.2,1.45161]
[1749923980092,0.79578,2512.4,2512.3,0.79576]
[1749923982695,0.79578,2512.3,2512.2,0.6558]
[1749923984898,0.79578,2512.3,2512.2,1.45161]
[1749923987103,0.79578,2512.3,2512.2,0.6558]
[1749923987286,0.79578,2512.3,2512.2,1.45161]
[1749923990798,0.79578,2512.3,2512.2,0.6558]
[1749923992501,0.79578,2512.3,2512.2,1.45161]
[1749923996101,1.75995107,2512.3,2512.2,1.45161]
[1749923996596,2.40825107,2512.3,2512.2,1.45161]
[1749923998402,1.75995107,2512.3,2512.2,1.45161]
[1749923998999,0.96417107,2512.3,2512.2,1.45161]
[1749923999297,0.80169502,2512.5,2512.4,0.79575]
[1749923999803,1.76658025,2512.5,2512.4,0.79575]
[1749924000205,0.79578,2512.4,2512.3,0.79576]
[1749924000405,0.79578,2512.3,2512.2,1.45159]
[1749924000703,1.76066523,2512.3,2512.2,1.45159]
[1749924000893,0.96488523,2512.3,2512.2,1.45159]
[1749924001099,1.76071014,2512.4,2512.3,0.79578]
[1749924001297,0.79578,2512.3,2512.2,1.45161]
[1749924001506,0.9649402,2512.3,2512.2,1.45161]
[1749924001705,0.00597502,2512.5,2512.2,7.76631]
[1749924002008,0.00597502,2512.5,2512.4,4.00355]
[1749924002307,0.00597502,2512.5,2512.4,10.32555]
[1749924002599,0.00597502,2512.5,2512.4,10.99605]
[1749924002803,0.97077352,2512.5,2512.4,10.99605]
[1749924003005,0.79575,2512.4,2512.3,3.16834332]
[1749924003208,1.47335,2512.4,2512.3,0.79578]
[1749924003907,0.74569268,2512.4,2512.3,0.79578]
[1749924004109,0.06809268,2512.4,2512.3,4.00358]
[1749924004706,0.80169502,2512.5,2512.4,0.79575]
[1749924004909,1.76614202,2512.5,2512.4,0.79575]
[1749924006203,0.79575,2512.4,2512.3,0.79576]
[1749924006407,1.44835,2512.4,2512.3,0.79576]
[1749924006907,0.79575,2512.4,2512.3,0.79576]
[1749924007807,0.79578,2512.3,2512.2,3.82415332]
[1749924008111,0.79577,2512.4,2512.3,0.79575]
[1749924008315,0.80170502,2512.5,2512.4,0.79575]
[1749924008611,1.76575423,2512.5,2512.4,0.79575]
[1749924008912,0.97002423,2512.5,2512.4,0.79575]
[1749924009211,0.00597502,2512.5,2512.4,0.79575]
[1749924010016,3.2078,2513.0,2512.7,0.79565]
[1749924010203,1.59496413,2512.9,2512.6,0.79566]
[1749924010409,0.79575,2512.4,2512.3,2.37256332]
[1749924010604,0.79575,2512.4,2512.3,0.79578]
[1749924010805,0.79581,2512.3,2512.2,0.79579]
[1749924011007,0.79577,2512.4,2512.3,0.79575]
[1749924012012,2.04777,2512.4,2512.3,0.79575]
[1749924012613,0.80171502,2512.5,2512.4,0.79575]
[1749924012815,0.00597502,2512.5,2512.4,0.79575]
[1749924013217,0.00597502,2512.5,2512.4,1.46245]
[1749924013819,0.00597502,2512.5,2512.4,3.42465]
[1749924014518,1.4543,2512.9,2512.8,0.79562]
[1749924014719,0.79565,2512.8,2512.7,0.79563]
[1749924015016,1.76300173,2512.8,2512.7,0.79563]
[1749924015918,1.76300173,2512.8,2512.7,1.48843]
[1749924016820,1.45431,2512.9,2512.8,0.79562]
[1749924017017,2.42126417,2512.9,2512.8,0.79562]
[1749924017819,0.79562,2512.8,2512.7,1.48843]
[1749924018119,1.83066685,2512.8,2512.7,1.48843]
[1749924018914,0.79562,2512.8,2512.7,1.48843]
[1749924019219,1.76247467,2512.8,2512.7,1.48843]
[1749924020023,0.86371268,2512.8,2512.7,1.48843]
[1749924020217,1.83055071,2512.8,2512.7,1.48843]
[1749924020722,0.86371268,2512.8,2512.7,1.48843]
[1749924021022,0.79562,2512.8,2512.7,1.48843]
[1749924023316,1.76236415,2512.8,2512.7,0.6928]
[1749924024120,1.76214643,2512.8,2512.7,0.6928]
[1749924024311,1.76214643,2512.8,2512.7,1.48845]
[1749924024918,1.76214643,2512.8,2512.7,0.6928]
[1749924025118,0.79565,2512.7,2512.6,0.79567]
[1749924025422,2.09744,2512.8,2512.7,0.79565]
[1749924025613,3.06401841,2512.8,2512.7,0.79565]
[1749924026014,3.13211109,2512.8,2512.7,0.79565]
[1749924027522,1.03467109,2512.8,2512.7,0.79565]
[1749924027723,1.83029109,2512.8,2512.7,0.79565]
[1749924027926,1.03467109,2512.8,2512.7,0.79565]
[1749924028922,1.83029109,2512.8,2512.7,0.79565]
[1749924029217,1.45429,2512.9,2512.8,0.79562]
[1749924029416,0.96690728,2512.9,2512.8,0.79562]
[1749924029618,1.45686,2513.0,2512.9,0.79559]
[1749924029822,2.42369239,2513.0,2512.9,0.79559]
[1749924030031,1.62813239,2513.0,2512.9,0.79559]
[1749924031532,2.42369239,2513.0,2512.9,0.79559]
[1749924031731,1.76239239,2513.0,2512.9,0.79559]
[1749924032819,2.09103,2513.2,2513.1,0.79553]
[1749924033728,1.2955,2513.2,2512.8,3.02896332]
[1749924034027,0.79562,2512.8,2512.7,2.37853834]
[1749924034231,0.86371268,2512.8,2512.7,0.00597502]
[1749924034830,1.83012378,2512.8,2512.7,0.00597502]
[1749924035324,3.1234311,2512.8,2512.7,0.00597502]
[1749924041633,2.15702,2512.8,2512.7,0.00597502]
[1749924041927,3.12375176,2512.8,2512.7,0.00597502]
[1749924047530,3.12375176,2512.8,2512.2,10.94539]
[1749924047531,0.79578,2512.3,2512.2,10.94539]
[1749924047728,0.79578,2512.3,2512.2,3.2078]
[1749924048230,1.76263116,2512.3,2512.2,3.2078]
[1749924048741,1.76263116,2512.3,2512.2,4.00361]
[1749924049236,0.79578,2512.3,2512.2,4.00361]
[1749924050536,1.2609,2512.4,2512.3,0.79578]
[1749924050738,1.44281502,2512.5,2512.4,0.79575]
[1749924050929,2.40905217,2512.5,2512.4,0.79575]
[1749924051440,1.76795217,2512.5,2512.4,0.79575]
[1749924055032,0.79575,2512.4,2512.3,1.48036]
[1749924057239,0.79575,2512.4,2512.3,0.6846]
[1749924058545,0.79584,2512.1,2512.0,0.00597502]
[1749924059036,1.76016124,2512.1,2512.0,0.00597502]
[1749924059636,3.03246124,2512.1,2512.0,0.00597502]
[1749924064046,0.96432124,2512.1,2512.0,0.80185502]
[1749924064243,1.76016124,2512.1,2512.0,0.80185502]
[1749924064547,0.79584,2512.1,2512.0,0.80185502]
[1749924065645,0.00597502,2512.5,2512.4,0.79575]
[1749924065833,0.97033101,2512.5,2512.4,0.79575]
[1749924066038,0.97033101,2512.5,2512.4,7.10475]
[1749924066243,0.00597502,2512.5,2512.4,8.45975]
[1749924066444,0.6425,2513.0,2512.9,0.79559]
[1749924066738,0.96423733,2513.0,2512.9,0.79557]
[1749924067149,0.79557,2513.0,2512.9,0.79558]
[1749924068046,3.2078,2513.1,2513.0,0.79556]
[1749924068243,4.17205139,2513.1,2513.0,0.79556]
[1749924068634,0.96425139,2513.1,2513.0,0.79556]
[1749924068845,0.79547,2513.3,2512.9,1.9389]
[1749924069046,0.79547,2513.3,2513.2,0.79548]
[1749924069440,0.79549,2513.3,2512.9,1.9389]
[1749924069746,0.79549,2513.3,2513.0,1.2522]
[1749924070250,0.7955,2513.2,2513.1,0.7955]
[1749924070638,0.79553,2513.1,2513.0,2.04774]
[1749924070953,0.79556,2513.0,2512.9,1.48227]
[1749924071244,3.8526,2513.4,2512.9,0.6867]
[1749924071547,0.79552,2513.2,2513.1,0.79552]
[1749924072847,0.79554,2513.1,2513.0,0.79553]
[1749924073147,0.79555,2513.1,2513.0,0.79554]
[1749924073646,0.79556,2513.0,2512.9,1.48227]
[1749924073839,0.79556,2513.0,2512.9,0.6867]
[1749924074342,0.79556,2513.0,2512.9,1.48229]
[1749924075156,0.79554,2513.1,2513.0,0.79553]
[1749924075652,1.2541,2513.2,2513.1,0.79553]
[1749924075842,0.7955,2513.2,2513.1,0.79553]
[1749924076347,1.48039,2513.3,2513.2,0.7955]
[1749924076550,2.83619,2513.3,2513.2,0.7955]
[1749924077155,2.0407,2513.3,2513.2,0.7955]
[1749924077358,2.83616,2513.3,2513.2,0.7955]
[1749924079053,2.90425268,2513.3,2513.2,0.7955]
[1749924079256,1.54845268,2513.3,2513.2,0.7955]
[1749924079946,1.48036,2513.3,2513.2,0.7955]
[1749924080547,3.8526,2513.4,2513.3,0.79546]
[1749924081057,0.6713,2513.6,2513.5,0.7954]
[1749924081458,1.9396,2513.6,2513.5,0.7954]
[1749924081757,2.73497,2513.6,2513.5,0.7954]
[1749924081944,1.9396,2513.6,2513.5,0.7954]
[1749924082145,3.2078,2513.7,2513.6,0.79537]
[1749924084356,1.2683,2514.0,2513.9,0.79527]
[1749924084547,0.79528,2513.9,2513.8,0.79529]
[1749924084754,0.79527,2513.9,2513.8,0.79529]
[1749924085447,1.2683,2514.0,2513.5,3.2078]
[1749924085658,1.2683,2514.0,2513.6,0.79537]
[1749924085659,0.79536,2513.7,2513.6,0.79537]
[1749924085956,0.79537,2513.6,2513.5,3.2078]
[1749924086655,0.7954,2513.5,2513.4,0.79541]
[1749924088547,0.79543,2513.4,2513.3,0.00597502]
[1749924089555,2.16293,2513.4,2513.3,0.00597502]
[1749924090054,1.3675,2513.4,2513.3,0.80143502]
[1749924090252,0.6274,2513.6,2513.3,0.00597502]
[1749924090556,0.79538,2513.6,2513.5,0.79538]
[1749924090752,1.47716,2513.7,2513.6,0.79537]
[1749924090952,0.6818,2513.7,2513.6,0.79537]
[1749924091353,1.47714,2513.7,2513.6,0.79537]
[1749924091759,1.9154,2513.9,2513.8,0.79531]
[1749924092656,3.31905,2514.1,2513.7,3.2078]
[1749924092866,4.11428,2514.1,2514.0,0.79524]
[1749924093753,0.79526,2514.0,2513.9,0.79526]
[1749924094262,4.11428,2514.1,2514.0,0.79524]
[1749924094659,4.11428,2514.1,2513.9,0.79526]
[1749924094660,0.79527,2514.0,2513.9,0.79526]
[1749924094862,4.11428,2514.1,2514.0,0.79524]
[1749924095064,0.90648,2514.1,2514.0,0.79524]
[1749924095662,0.11125,2514.1,2514.0,0.79524]
[1749924095859,0.90646,2514.1,2514.0,0.79524]
[1749924096157,0.11125,2514.1,2513.8,0.6859]
[1749924096365,0.11125,2514.1,2514.0,0.79524]
[1749924097467,0.90646,2514.1,2514.0,0.79524]
[1749924097968,0.79526,2514.0,2513.9,0.79525]
[1749924098169,0.90648,2514.1,2514.0,0.79524]
[1749924098962,0.11125,2514.1,2514.0,4.00304]
[1749924102666,3.2078,2515.0,2514.0,32.2668]
[1749924102864,0.79493,2515.0,2514.9,0.79496]
[1749924103065,0.79495,2515.0,2514.7,6.30497502]
[1749924103264,0.79491,2515.1,2514.7,6.30497502]
[1749924103474,1.2499,2515.1,2515.0,0.79492]
[1749924103776,0.6572,2515.2,2515.1,0.79489]
[1749924104272,3.2078,2515.3,2515.2,0.79486]
[1749924104573,0.79484,2515.3,2515.2,0.79486]
[1749924104774,0.79484,2515.3,2515.2,5.79486]
[1749924104970,3.2078,2515.9,2515.2,0.6247]
[1749924105268,3.2078,2515.9,2515.2,6.9237]
[1749924105478,1.2808,2515.8,2515.3,1.98704]
[1749924105680,1.2808,2515.8,2515.7,0.7947]
[1749924105880,1.2808,2515.8,2515.2,10.85722]
[1749924106074,1.2808,2515.8,2515.7,0.7947]
[1749924106276,1.2808,2515.8,2515.2,10.85722]
[1749924106579,1.2808,2515.8,2515.2,7.6042]
[1749924106783,0.79481,2515.4,2515.2,2.10004]
[1749924106980,1.2808,2515.8,2515.1,3.2078]
[1749924107276,1.2808,2515.3,2515.2,0.79484]
[1749924107477,0.79475,2515.6,2515.1,6.298]
[1749924107677,0.79471,2515.7,2515.6,0.79474]
[1749924107878,0.79471,2515.7,2515.5,0.79475]
[1749924108073,1.2555,2515.6,2515.5,0.79475]
[1749924108783,4.4633,2515.6,2514.9,0.6783]
[1749924108978,0.6299,2515.5,2515.0,6.297]
[1749924109180,1.2555,2515.4,2515.3,0.79483]
[1749924110781,2.05031,2515.4,2515.0,9.5048]
[1749924110983,1.2555,2515.4,2515.3,0.79483]
[1749924111281,0.6299,2515.5,2515.4,0.7948]
[1749924111484,0.6299,2515.5,2515.3,0.79481]
[1749924111485,1.42467,2515.5,2515.3,0.79481]
[1749924111682,2.78497,2515.5,2515.3,0.79481]
[1749924111876,2.78497,2515.5,2515.0,9.5048]
[1749924112183,2.78497,2515.5,2515.3,0.79481]
[1749924112381,2.78497,2515.5,2515.4,0.7948]
[1749924113679,0.79472,2515.7,2515.6,0.79471]
[1749924113884,0.79472,2515.7,2515.6,0.79472]
[1749924114181,0.7947,2515.7,2515.3,3.2078]
[1749924114369,0.7947,2515.7,2515.5,0.79474]
[1749924114576,0.79474,2515.6,2515.5,0.79475]
[1749924114777,0.79477,2515.5,2515.4,0.79478]
[1749924114972,0.7948,2515.4,2515.3,3.2078]
[1749924115182,0.7948,2515.4,2515.3,4.00263]
[1749924115378,0.7948,2515.4,2515.3,4.00261]
[1749924115684,0.79478,2515.5,2515.4,0.79478]
[1749924117881,2.04956,2515.6,2515.5,0.79477]
[1749924118181,1.2548,2515.6,2515.5,0.79477]
[1749924118385,0.06809268,2515.8,2515.7,0.7947]
[1749924121487,0.06809268,2515.8,2515.6,9.5428]
[1749924121488,0.06809268,2515.8,2515.6,4.0025]
[1749924121687,0.7947,2515.7,2515.6,6.335]
[1749924122187,0.79477,2515.5,2515.4,1.45759]
[1749924122488,1.47925,2515.6,2515.5,0.79474]
[1749924122886,0.79477,2515.5,2515.4,7.12978]
[1749924123082,2.12947,2515.5,2515.4,0.79478]
[1749924123386,2.12949,2515.5,2515.4,0.7948]
[1749924123985,1.3347,2515.5,2515.4,0.7948]
[1749924125088,2.12947,2515.5,2515.4,0.7948]
[1749924126384,1.3347,2515.5,2515.4,0.7948]
[1749924127486,2.12947,2515.5,2515.4,0.7948]
[1749924128087,0.7948,2515.4,2515.3,3.2078]
[1749924128287,0.79483,2515.3,2515.2,1.48683]
[1749924130489,0.79483,2515.3,2515.2,1.48686]
[1749924130684,1.46453,2515.3,2515.2,1.48686]
[1749924130986,0.6697,2515.3,2515.2,1.48686]
[1749924131389,1.49832147,2515.3,2515.2,1.48686]
[1749924131591,0.70349147,2515.3,2515.2,1.48686]
[1749924131793,1.49832147,2515.3,2515.2,1.48686]
[1749924132390,2.46321399,2515.3,2515.2,1.48686]
[1749924134497,0.79489,2515.1,2515.0,3.2078]
[1749924134787,0.79489,2515.1,2515.0,4.00273]
[1749924134990,1.76053552,2515.1,2515.0,4.00273]
[1749924135593,0.84899735,2515.1,2515.0,4.00273]
[1749924136191,1.81467769,2515.1,2515.0,4.00273]
[1749924136592,0.84899735,2515.1,2515.0,4.00273]
[1749924137091,1.81478188,2515.1,2515.0,4.00273]
[1749924137286,0.84899735,2515.1,2515.0,4.00273]
[1749924140899,0.91709003,2515.1,2515.0,4.00273]
[1749924144701,0.79496,2514.9,2514.8,0.6771]
[1749924144902,0.79499,2514.8,2514.7,0.00597502]
[1749924145195,2.06999,2514.8,2514.7,0.00597502]
[1749924145401,3.035519,2514.8,2514.7,0.00597502]
[1749924145600,3.08962635,2514.8,2514.7,0.00597502]
[1749924146800,0.79512,2514.4,2514.3,0.6736]
[1749924147800,0.79518,2514.2,2514.1,0.00596303]
[1749924148299,0.79518,2514.2,2514.1,0.80117303]
[1749924148901,0.05410735,2514.2,2514.1,0.80117303]
[1749924149703,0.05410735,2514.2,2514.1,2.18207303]
[1749924150297,0.80099503,2514.6,2514.5,0.79508]
[1749924150801,0.00593503,2514.6,2514.5,0.79508]
[1749924151100,0.00593503,2514.6,2514.5,2.83348]
[1749924151403,0.79498,2514.9,2514.8,0.79499]
[1749924151720,3.2078,2515.1,2515.0,0.79493]
[1749924151910,0.79487,2515.2,2515.1,0.77905501]
[1749924152903,0.81070499,2515.2,2515.1,0.77905501]
[1749924153397,0.82653998,2515.2,2515.1,0.77905501]
[1749924153600,0.03166998,2515.2,2515.1,0.77905501]
[1749924154598,0.03166998,2515.2,2515.0,1.46031]
[1749924154801,0.03166998,2515.2,2515.1,0.79489]
[1749924155204,0.82654998,2515.2,2515.1,0.79489]
[1749924155704,0.03166998,2515.2,2515.1,0.79489]
[1749924157106,0.03166998,2515.2,2515.0,6.9844]
[1749924157306,0.79489,2515.1,2515.0,7.77932]
[1749924157512,1.45965,2515.3,2515.2,0.76319002]
[1749924157808,0.79488,2515.2,2515.1,0.79487]
[1749924158211,1.45965,2515.3,2515.2,0.79486]
[1749924158606,5.29012,2515.4,2515.3,0.79483]
[1749924159505,0.79486,2515.3,2515.2,0.79485]
[1749924159712,5.29012,2515.4,2515.3,0.79483]
[1749924160011,5.30990608,2515.4,2515.3,0.79483]
[1749924160410,2.10210608,2515.4,2515.3,0.79483]
[1749924161212,2.11840361,2515.4,2515.3,0.79483]
[1749924161508,0.83090361,2515.4,2515.3,0.79483]
[1749924162112,0.84720129,2515.4,2515.3,0.79483]
[1749924162505,0.05238129,2515.4,2515.3,0.79483]
[1749924162703,0.84718129,2515.4,2515.3,0.79483]
[1749924164411,0.05238129,2515.4,2515.3,0.79483]
[1749924164813,0.84718129,2515.4,2515.3,0.79483]
[1749924165908,0.79487,2515.3,2515.2,0.79484]
[1749924166108,0.79489,2515.2,2515.1,7.11387]
[1749924167415,0.05238129,2515.2,2514.9,9.5268]
[1749924167618,0.79493,2515.0,2514.9,4.00274]
[1749924168010,1.46203,2515.0,2514.9,3.2078]
[1749924168317,1.51441129,2515.0,2514.9,3.2078]
[1749924168523,1.51441129,2515.0,2514.5,6.319]
[1749924168524,0.79501,2514.8,2514.5,6.319]
[1749924168818,0.71948129,2515.0,2514.9,0.79496]
[1749924169505,1.51441129,2515.0,2514.9,0.79496]
[1749924170119,0.79497,2514.9,2514.8,0.79497]
[1749924170315,0.79499,2514.8,2514.7,4.0028]
[1749924170713,0.79499,2514.8,2514.7,3.2078]
[1749924170919,2.15399,2514.8,2514.7,3.2078]
[1749924171518,2.20637129,2514.8,2514.7,0.79502]
[1749924173319,2.20639129,2514.8,2514.7,0.79502]
[1749924174323,0.84739129,2514.8,2514.7,0.79502]
[1749924174821,0.05238129,2514.8,2514.7,0.79502]
[1749924175522,0.05238129,2514.8,2514.7,7.12952]
[1749924176219,4.44845,2515.3,2515.2,0.79486]
[1749924176625,0.06809268,2515.4,2515.3,0.79483]
[1749924177920,0.06809268,2515.4,2515.3,4.00263]
[1749924180619,0.86289268,2515.4,2515.3,4.00263]
[1749924180821,0.86289268,2515.4,2515.3,3.2078]
[1749924181224,0.06809268,2515.4,2515.3,4.00263]
[1749924181918,0.86289268,2515.4,2515.3,3.2078]
[1749924182924,0.86289268,2515.4,2515.3,4.00263]
[1749924184930,0.86289268,2515.4,2515.3,0.79483]
[1749924185226,0.79489,2515.1,2515.0,3.8456]
[1749924185522,0.79489,2515.1,2514.5,1.98771]
[1749924185523,0.79502,2514.7,2514.6,3.2078]
[1749924186121,0.79502,2514.7,2514.6,4.00285]
[1749924186326,0.79502,2514.7,2514.6,3.2078]
[1749924186517,0.79507,2514.6,2514.4,0.6441]
[1749924186721,0.79508,2514.5,2514.4,1.4392]
[1749924186922,4.05125,2514.8,2514.4,0.6441]
[1749924187117,0.79515,2514.3,2514.2,6.314]
[1749924187323,0.79518,2514.2,2514.1,0.00596303]
[1749924188529,0.79518,2514.2,2514.1,0.80117303]
[1749924188725,0.79518,2514.2,2514.1,0.00596303]
[1749924188925,0.79517,2514.3,2514.1,0.80117303]
[1749924189127,2.16767,2514.3,2514.1,0.80117303]
[1749924189835,1.3725,2514.3,2514.1,0.00596303]
[1749924190028,2.16766,2514.3,2514.2,0.79518]
[1749924190531,2.16766,2514.3,2514.1,0.80115303]
[1749924190728,1.43353,2514.4,2514.2,0.79518]
[1749924190924,3.2078,2514.6,2514.5,0.79508]
[1749924191131,0.79503,2514.7,2514.6,0.79505]
[1749924191531,0.6912,2514.8,2514.4,3.2078]
[1749924191837,5.33564,2515.0,2514.8,0.79496]
[1749924192030,4.5407,2515.0,2514.9,0.79496]
[1749924192232,4.5407,2515.0,2514.5,2.0275]
[1749924192233,5.33565,2515.0,2514.8,0.79497]
[1749924192432,0.795,2514.8,2514.7,0.79501]
[1749924192828,4.5407,2515.0,2514.7,0.79501]
[1749924193231,0.79504,2514.7,2514.6,0.79504]
[1749924193431,0.795,2514.8,2514.7,0.79501]
[1749924193634,3.2078,2515.0,2514.5,6.9732]
[1749924193930,0.7949,2515.1,2515.0,0.79493]
[1749924194235,0.79489,2515.1,2515.0,0.79491]
[1749924194427,0.79489,2515.2,2515.1,0.79489]